Cogmind - Beta 13 @@@ ROGUE MODE // 2024.07.26 @ 22:07:15 Player: jagoly Result: Destroyed by H-66 Slayer with Gauss Rifle Performance ------------- Evolutions (4) 2000 Regions Visited (15) 3000 Robots Destroyed (265) 1325 Value Destroyed (10000) 10000 Prototype IDs (39) 780 Alien Tech Used (0) 0 Bonus (1451) 1451 TOTAL SCORE: 18556 Bonus ------- High Alert Combat Kills 682 Follower Combat Kills 295 Entered Garrisons 200 Met Data Miner 300 Acquired ECA 300 Friendly Fire -326 Cogmind --------- Core Integrity 0/850 Matter 272/300 Energy 62/100 System Corruption 4% Temperature Cool (0) Movement Core (50) Location -5/Proximity Caves Parts ------- > --- POWER (2) -------- (None) > --- PROPULSION (4) --- (None) > --- UTILITY (6) ------ Core Analyzer > --- WEAPON (3) ------- (None) > --- INVENTORY (5) ---- Advanced Power Amplifier Large Storage Unit System Shield Ion Burst Cannon Improved Plasma Cutter Peak State ------------ > --- POWER ------------ Cooled Deuterium Engine Antimatter Reactor > --- PROPULSION ------- Improved Medium Treads Improved Medium Treads Heavy Siege Treads > --- UTILITY ---------- Advanced Heat Sink High-capacity Storage Unit Focal Shield Thermal Shield Improved Force Field Hacking Suite > --- WEAPON ----------- Improved Heavy Laser Phase Gun Coil Gun > --- INVENTORY -------- Fission Core Improved Medium Treads Combat Airjet Combat Airjet Combat Airjet Advanced Power Amplifier Advanced Heat Sink Large Storage Unit Energy Well Core Analyzer Improved Reaction Control System EM Disruption Field Improved Hardlight Generator System Shield System Restoration Module Ion Burst Cannon Ion Burst Cannon Missile Launcher Plasma Cutter [Rating: 88] Favorites ----------- Power Cooled Deuterium Engine Engine Cooled Deuterium Engine Power Core Fission Core Reactor Antimatter Reactor Propulsion Light Treads Treads Light Treads Leg Aluminum Leg Wheel Armored Wheel Hover Unit Combat Airjet Flight Unit Improved Flight Unit Utility Large Storage Unit Device Improved Heat Sink Storage Large Storage Unit Processor Improved Targeting Computer Hackware Hacking Suite Protection Powered Armor Weapon Advanced Beam Rifle Energy Gun Advanced Beam Rifle Energy Cannon Advanced Beam Cannon Ballistic Gun Flak Gun Ballistic Cannon Mini Assault Cannon Launcher Missile Launcher Special Weapon Enhanced Flamer Impact Weapon Heavy Flail Slashing Weapon Greatsword Build | -11 -10 -10 -9 -9 -9 -8 -8 -8 -7 -7 -6 -6 -6 -6 -5 ------- Run | Yrd Mat Min Mat Min Exi Min Mat Sto Fac Gar Fac Low Low Dat Pro Slots Evolved 8 | . . . 2 . . . 2 . 2 . 2 . . . . Power 1 | . . . . . . . . . . . 1 . . . . Propulsion 2 | . . . 1 . . . . . 1 . . . . . . Utility 4 | . . . 1 . . . 2 . 1 . . . . . . Weapon 1 | . . . . . . . . . . . 1 . . . . Parts Attached 282 | 6 8 4 24 . 1 4 43 42 23 27 58 2 24 . 16 Power 26 | 1 1 1 3 . . . 5 2 8 1 1 1 1 . 1 Engine 23 | 1 1 1 3 . . . 4 2 8 . 1 . 1 . 1 Core 2 | . . . . . . . 1 . . . . 1 . . . Reactor 1 | . . . . . . . . . . 1 . . . . . Propulsion 73 | 2 3 2 10 . . . 13 24 5 6 1 . 3 . 4 Treads 60 | . . 2 10 . . . 13 20 5 5 1 . 3 . 1 Leg 5 | 2 3 . . . . . . . . . . . . . . Wheel 1 | . . . . . . . . . . 1 . . . . . Hover 4 | . . . . . . . . 1 . . . . . . 3 Flight 3 | . . . . . . . . 3 . . . . . . . Utility 111 | 1 3 . 4 . 1 1 18 10 8 11 35 1 11 . 7 Device 65 | . 1 . 3 . . 1 8 6 2 7 27 1 5 . 4 Storage 10 | 1 2 . 1 . 1 . 2 . 1 . 2 . . . . Processor 5 | . . . . . . . . . 2 1 1 . 1 . . Hackware 3 | . . . . . . . 1 1 . . . . . . 1 Protection 28 | . . . . . . . 7 3 3 3 5 . 5 . 2 Artifact . | . . . . . . . . . . . . . . . . Weapon 72 | 2 1 1 7 . . 3 7 6 2 9 21 . 9 . 4 Energy Gun 35 | 1 1 1 3 . . . 5 4 2 3 10 . 3 . 2 Energy Cannon 10 | . . . 2 . . 2 2 . . . 3 . 1 . . Ballistic Gun 11 | 1 . . 1 . . . . . . 4 2 . 2 . 1 Ballistic Cannon 2 | . . . . . . . . . . . 1 . 1 . . Launcher 8 | . . . 1 . . 1 . . . 1 4 . . . 1 Special Weapon 2 | . . . . . . . . . . . . . 2 . . Impact Weapon 3 | . . . . . . . . 2 . 1 . . . . . Slashing Weapon 1 | . . . . . . . . . . . 1 . . . . Piercing Weapon . | . . . . . . . . . . . . . . . . Special Melee Weapon . | . . . . . . . . . . . . . . . . Unidentified Prototypes 14 | . . . 3 . . . 1 5 3 . 1 . 1 . . Parts Lost 59 | . . 2 3 . . . 15 . 5 7 2 1 7 . 17 Power 8 | . . 1 . . . . 3 . 1 . . 1 1 . 1 Propulsion 17 | . . . 2 . . . 5 . 1 3 . . 2 . 4 Utility 20 | . . . 1 . . . 5 . 3 2 2 . 1 . 6 Weapon 14 | . . 1 . . . . 2 . . 2 . . 3 . 6 Highest Loss Streak 12 | . . 1 1 . . . 12 . 5 3 1 1 2 . 8 To Critical Strikes . | . . . . . . . . . . . . . . . . Average Slot Usage (%) 94 | . 95 99 94 100 77 96 94 99 99 94 92 92 87 100 87 Engine 7 | . 14 13 11 11 11 11 7 9 6 4 5 6 3 6 5 Core 1 | . . . . . . . 1 . . . . 3 6 6 5 Reactor 1 | . . . . . . . . . . 2 6 2 . . . Treads 23 | . . 27 31 33 33 33 25 26 29 23 20 20 23 26 17 Leg 2 | . 28 . . . . . . . . . . . . . . Device 15 | . 9 14 19 22 22 22 15 17 16 12 15 20 9 13 12 Storage 8 | . 14 14 11 11 11 11 9 9 7 7 6 6 6 6 5 Processor 2 | . . . . . . . . . 4 7 5 6 6 6 6 Hackware 4 | . . . . . . . 8 9 7 7 6 6 6 6 5 Protection 4 | . . . . . . . 9 9 8 9 3 . 3 6 5 Energy Gun 9 | . 14 19 15 . . . 5 17 15 7 8 13 4 . . Energy Cannon 4 | . . . 2 22 . 18 12 . . . 2 . 4 6 5 Ballistic Gun 4 | . 14 7 2 . . . . . . 6 6 6 5 6 11 Naked Turns . | . . . . . . . . . . . . . . . . Heaviest Build 116 | 12 28 30 38 38 30 38 58 54 63 66 116 93 96 89 92 Greatest Support 130 | 20 20 40 60 60 60 60 60 62 80 120 130 130 130 118 118 Greatest Overweight (x) 5 | . 1 . . . . . 1 1 . 5 . . 1 . 3 Average Overweight (x) . | . . . . . . . . . . 1 . . . . . Largest Inventory Capacity 20 | 8 15 15 15 15 15 15 15 15 15 15 20 20 20 20 20 Average Capacity 16 | 6 11 15 15 15 15 15 15 15 15 15 18 20 20 20 19 Most Carried 20 | 4 13 13 15 15 15 15 15 15 15 15 20 20 20 19 20 Average Carried 14 | 2 8 10 13 13 15 13 12 14 14 14 17 19 18 19 19 Final Capacity 20 | 8 15 15 15 15 15 15 15 15 15 15 20 20 20 20 5 Final Carried 20 | 4 13 10 14 15 15 13 15 15 15 15 20 20 19 19 5 Class Distribution -------------------- 45% | Scavenger-Mutant 18% | Mutant 17% | Tank 7% | Gunner 5% | Scavenger-Tank 4% | Commander-Mutant Dominant Class ---------------- Mutant | -10/Materials Mutant | -10/Mines Scavenger-Mutant | -9/Materials Scavenger-Mutant | -9/Mines Scavenger-Mutant | -9/Exiles Scavenger-Mutant | -8/Mines Scavenger-Mutant | -8/Materials Scavenger-Mutant | -8/Storage Scavenger-Mutant | -7/Factory Scavenger-Mutant | -7/Garrison Tank | -6/Factory Tank | -6/Lower Caves Gunner | -6/Lower Caves Scavenger-Tank | -6/Data Miner Scavenger-Tank | -5/Proximity Caves Resources | -11 -10 -10 -9 -9 -9 -8 -8 -8 -7 -7 -6 -6 -6 -6 -5 ----------- Run | Yrd Mat Min Mat Min Exi Min Mat Sto Fac Gar Fac Low Low Dat Pro Matter Collected 4966 | 212 295 78 317 . . 228 379 459 215 573 1227 67 455 . 461 Remotely . | . . . . . . . . . . . . . . . . Salvage Created 11694 | . 487 285 1193 . . 354 1537 1620 524 1101 2685 181 901 . 826 Parts 580 | . 39 12 61 . . 15 79 102 30 50 111 6 39 . 36 Haulers Intercepted 18 | . 2 . 5 . . . 2 5 2 . 2 . . . . Recyclers Shooed 6 | . 1 . . . . . 1 . . . 4 . . . . Parts Field Recycled . | . . . . . . . . . . . . . . . . Retrieved Matter . | . . . . . . . . . . . . . . . . Parts Self-Destructed 86 | . . . . . . . . . . . . 6 38 . 42 Prevented . | . . . . . . . . . . . . . . . . Kills | -11 -10 -10 -9 -9 -9 -8 -8 -8 -7 -7 -6 -6 -6 -6 -5 ------- Run | Yrd Mat Min Mat Min Exi Min Mat Sto Fac Gar Fac Low Low Dat Pro Combat Hostiles Destroyed 209 | . 11 6 21 . . 8 22 29 9 24 41 3 17 . 18 Guns 156 | . 11 5 19 . . . 3 28 9 24 26 3 16 . 12 Cannons 37 | . . . . . . 7 17 . . . 7 . 1 . 5 AOE 8 | . . . . . . . . . . . 8 . . . . Classes Destroyed 18 | . 5 1 2 . . 2 2 . 1 3 . . 1 . 1 Worker 10 | . . . 1 . . . 3 2 . . 4 . . . . Builder 1 | . . . . . . . 1 . . . . . . . . Tunneler 2 | . . 1 . . . . 1 . . . . . . . . Hauler 18 | . 2 . 5 . . . 2 5 2 . 2 . . . . Recycler 6 | . . . . . . . 2 . . . 4 . . . . Operator 5 | . 1 . . . . . . 2 1 . 1 . . . . Drone 2 | . . . . . . . . . . . . . . . 2 Watcher 12 | . 3 . 2 . . . 1 1 1 . 4 . . . . Swarmer 41 | . 6 . 4 . . 3 . 7 3 4 7 . 4 . 3 Cutter 3 | . . . . . . . . . . 3 . . . . . Grunt 103 | . 5 6 9 . . 5 16 12 3 12 18 . 5 . 12 Brawler 4 | . . . . . . 1 . . . . 3 . . . . Duelist 1 | . . . . . . . . . . 1 . . . . . Sentry 32 | . . . 8 . . . 5 10 1 1 5 . 1 . 1 Specialist 3 | . . . . . . . . . . . . . 3 . . Hunter 12 | . . . . . . 1 1 . . . 5 3 2 . . Programmer 8 | . . . . . . . . . 2 2 3 . 1 . . Behemoth 2 | . . . . . . . . . . 1 . . 1 . . Best Kill Streak 11 | . 3 2 5 . . 4 6 6 4 10 11 3 4 . 8 Combat Bots Only 10 | . 3 2 4 . . 4 5 6 3 10 8 3 4 . 8 Max Kills in Single Turn 5 | . 2 1 1 . . 2 2 2 1 2 5 1 1 . 1 Gunslinging 1 | . 1 . . . . . . 1 . 1 . . . . . Exploded 3 | . . . . . . . . . . . 3 . . . . Melee . | . . . . . . . . . . . . . . . . Uniques/NPCs Destroyed . | . . . . . . . . . . . . . . . . Combat | -11 -10 -10 -9 -9 -9 -8 -8 -8 -7 -7 -6 -6 -6 -6 -5 -------- Run | Yrd Mat Min Mat Min Exi Min Mat Sto Fac Gar Fac Low Low Dat Pro Hostile Shots Fired 1375 | . 59 34 112 . . 27 188 113 61 188 277 33 110 . 173 Missed 374 | . 17 9 40 . . 9 45 27 20 53 76 8 30 . 40 Damage Taken 12558 | . 411 340 750 . . 234 2056 1166 883 1703 1564 121 1166 . 2164 Core 1767 | . 87 76 107 . . 66 213 63 183 118 88 15 64 . 687 Absorbed by Shields 2740 | . . . 160 . . 85 214 189 131 289 1126 84 252 . 210 Reduced by Siege Mode 208 | . . . . . . . . . . 4 117 19 68 . . Ignored by Resistances 1098 | . . . . . . . . . . 267 483 55 78 . 215 Core Remaining (%) 59 | 100 . 34 . . . 56 . 49 . 57 . . . . . Volleys Fired 761 | . 57 26 83 . . 20 118 107 41 118 94 7 45 . 45 Largest 3 | . 2 2 2 . . 2 2 2 2 2 3 3 3 . 3 Hottest 195 | . 70 100 112 . . 136 136 122 122 122 195 183 193 . 193 Shots Fired 1506 | . 113 50 165 1 . 38 193 194 82 170 253 21 126 . 100 Gun 1185 | . 113 50 164 . . . 21 194 82 168 213 21 88 . 71 Cannon 299 | . . . 1 1 . 34 172 . . . 31 . 34 . 26 Launcher 16 | . . . . . . 4 . . . 2 9 . . . 1 Special 6 | . . . . . . . . . . . . . 4 . 2 Kinetic 380 | . 57 16 29 . . . . . . 63 105 7 43 . 60 Thermal 1090 | . 56 34 136 1 . 34 193 194 82 105 120 14 83 . 38 Explosive 16 | . . . . . . 4 . . . 2 9 . . . 1 Electromagnetic 20 | . . . . . . . . . . . 19 . . . 1 Robot Hit Streak 39 | . 15 19 15 1 . 6 19 11 11 26 39 6 13 . 12 Robot Miss Streak 9 | . 5 2 3 . . 3 6 5 4 5 4 2 7 . 9 Penetration Max 1 | . . . . . . . . . . . 1 . . . 1 Secondary Targets 19 | . 2 . 1 . . . . 2 . 7 3 1 1 . 2 Max Gunslinging Chain 1 | . 1 . 1 . . . . 1 . 1 1 1 1 . 1 Shots Hit Robots 1025 | . 64 41 115 1 . 24 124 118 48 137 188 13 86 . 66 Core Hits 604 | . 26 14 41 . . 18 49 55 22 104 141 8 48 . 78 Critical Kills 9 | . 1 . . . . 1 2 . . . 3 . 1 . 1 Critical Parts Destroyed 1 | . . . . . . . . . . . . . 1 . . Critical Strikes 66 | . 5 6 13 . . 1 4 10 5 4 10 1 6 . 1 Burn 55 | . 4 6 13 . . . 2 10 5 4 6 1 4 . . Meltdown 4 | . . . . . . 1 2 . . . . . . . 1 Destroy 6 | . 1 . . . . . . . . . 3 . 2 . . Blast 1 | . . . . . . . . . . . 1 . . . . Melee Attacks 5 | . . . . . . . . 3 . 2 . . . . . Impact 5 | . . . . . . . . 3 . 2 . . . . . Slashing . | . . . . . . . . . . . . . . . . Piercing . | . . . . . . . . . . . . . . . . Sneak Attacks . | . . . . . . . . . . . . . . . . Combat Hostiles . | . . . . . . . . . . . . . . . . Follow-up Attacks . | . . . . . . . . . . . . . . . . Damage Inflicted 24064 | . 800 549 1849 . . 824 2825 2480 1020 3065 6509 286 2162 . 1695 Guns 16475 | . 792 549 1848 . . . 265 2480 1020 2842 3954 286 1366 . 1073 Cannons 4977 | . . . . . . 494 2560 . . . 692 . 774 . 457 Explosions 2581 | . . . . . . 330 . . . 223 1863 . . . 165 Melee . | . . . . . . . . . . . . . . . . Ramming 9 | . 8 . 1 . . . . . . . . . . . . Kinetic 5414 | . 355 173 342 . . . . . . 1151 1847 80 604 . 862 Thermal 16216 | . 437 376 1506 . . 494 2825 2480 1020 1691 2955 206 1558 . 668 Explosive 2051 | . . . . . . 330 . . . 223 1333 . . . 165 Electromagnetic 374 | . . . . . . . . . . . 374 . . . . Impact . | . . . . . . . . . . . . . . . . Slashing . | . . . . . . . . . . . . . . . . Piercing . | . . . . . . . . . . . . . . . . Highest Corruption 5 | . . . 4 4 4 4 5 5 . 1 5 3 4 4 4 Average Corruption 3 | . . . 4 4 4 4 2 5 . 1 2 3 3 4 4 Corruption Purged 6 | . . . . . . . . . . 1 5 . . . . Corruption Blocked . | . . . . . . . . . . . . . . . . Effects 220 | . . . 17 17 11 21 10 40 . 2 32 8 38 5 19 Message Errors 55 | . . . 6 4 2 3 5 11 . . 6 3 8 2 5 Matter Fused 55 | . . . . 5 4 8 3 3 . . 8 3 10 1 10 Heat Flow Errors 26 | . . . 1 3 2 . . 4 . 2 4 1 6 1 2 Energy Discharges 21 | . . . 3 1 2 1 . 7 . . 1 1 3 1 1 Parts Rejected 2 | . . . 1 . . . 1 . . . . . . . . Parts Fused 8 | . . . 1 1 . . . 1 . . 2 . 2 . 1 Data Loss (minor) 24 | . . . 2 1 1 5 1 7 . . 3 . 4 . . Data Loss (major) 7 | . . . . 1 . 1 . 3 . . 1 . 1 . . Misfires 10 | . . . 1 1 . 2 . 1 . . 4 . 1 . . Alerts 4 | . . . . . . 1 . 1 . . 1 . 1 . . Weapon Failures 8 | . . . 2 . . . . 2 . . 2 . 2 . . Overload Shots . | . . . . . . . . . . . . . . . . Overflow Damage 237 | . . . . . . . 30 . . . 187 . 15 . 5 Projectiles 65 | . . . . . . . 30 . . . 15 . 15 . 5 Explosions 172 | . . . . . . . . . . . 172 . . . . Melee . | . . . . . . . . . . . . . . . . Knockbacks . | . . . . . . . . . . . . . . . . Impact . | . . . . . . . . . . . . . . . . Kinetic . | . . . . . . . . . . . . . . . . Secondary . | . . . . . . . . . . . . . . . . Self-Inflicted Damage 331 | . . . . . . 41 . . . 44 205 . . . 41 Shots 8 | . . . . . . 1 . . . 2 4 . . . 1 Rammed 1 | . . . 1 . . . . . . . . . . . . Targets Rammed 3 | . 2 . 1 . . . . . . . . . . . . Kicked 2 | . 2 . . . . . . . . . . . . . . Crushed . | . . . . . . . . . . . . . . . . Highest Temperature 483 | . 135 66 90 206 164 135 483 280 158 262 381 285 266 208 277 Average Temperature 82 | . 40 24 13 73 85 55 137 79 21 30 107 193 87 109 107 Received Heat Transfer 4302 | . 129 213 261 . . 66 1222 551 86 509 486 . 130 . 649 Effects 17 | . . . . . . . 4 1 . . 7 1 1 . 3 Shutdowns 4 | . . . . . . . 2 . . . 2 . . . . Energy Bleed 3 | . . . . . . . 1 1 . . . 1 . . . Interference 9 | . . . . . . . . . . . 5 . 1 . 3 Short Circuit 1 | . . . . . . . 1 . . . . . . . . Siege Activations 21 | . . . . . . . . . . 2 12 1 6 . . Total Turns 263 | . . . . . . . . . . 51 118 20 74 . . Longest Duration 33 | . . . . . . . . . . 33 22 20 20 . . Robots Corrupted . | . . . . . . . . . . . . . . . . Combat Hostiles . | . . . . . . . . . . . . . . . . Parts Fried . | . . . . . . . . . . . . . . . . Impact Corruptions . | . . . . . . . . . . . . . . . . Robots Melted 10 | . . 1 2 . . 1 3 1 . 1 . . . . 1 Combat Hostiles 8 | . . 1 2 . . 1 2 1 . . . . . . 1 Parts Melted 76 | . 3 2 16 . . 8 10 6 5 5 9 5 2 . 5 Heat Transferred 32524 | . 1591 1554 4440 . . 888 5143 5328 2183 3293 4287 370 2417 . 1030 Parts Sabotaged 4 | . . . . . . . . . . . . . . . 4 Parts Stolen . | . . . . . . . . . . . . . . . . Parts Stripped . | . . . . . . . . . . . . . . . . Power Chain Reactions . | . . . . . . . . . . . . . . . . Alert | -11 -10 -10 -9 -9 -9 -8 -8 -8 -7 -7 -6 -6 -6 -6 -5 ------- Run | Yrd Mat Min Mat Min Exi Min Mat Sto Fac Gar Fac Low Low Dat Pro Peak Influence 990 | . 244 110 306 10 . 179 351 515 279 850 990 . . . . Initial 445 | . . . . 10 . . . 100 131 75 445 . . . . Average 222 | . 90 36 106 5 . 35 208 357 97 497 427 . . . . Maximum Alert Level 3 | . 1 . 1 . . . 1 2 1 3 3 . . . . Low Security (%) 55 | 100 90 100 83 100 . 100 38 9 88 13 13 . . . . Level 1 25 | . 9 . 16 . . . 61 63 11 11 40 . . . . Level 2 15 | . . . . . . . . 27 . 69 33 . . . . Level 3 2 | . . . . . . . . . . 6 12 . . . . Level 4 . | . . . . . . . . . . . . . . . . Level 5 . | . . . . . . . . . . . . . . . . High Security . | . . . . . . . . . . . . . . . . Max Security . | . . . . . . . . . . . . . . . . Squads Dispatched 26 | . 2 . 1 . . . 3 4 3 . 12 . . . 1 Investigation 6 | . 1 . . . . . 1 1 1 . 2 . . . . Extermination 5 | . . . . . . . . . 2 . 3 . . . . Reinforcement 10 | . 1 . 1 . . . 2 3 . . 3 . . . . Assault 3 | . . . . . . . . . . . 2 . . . 1 Garrison 2 | . . . . . . . . . . . 2 . . . . Intercept . | . . . . . . . . . . . . . . . . Searches Triggered . | . . . . . . . . . . . . . . . . Construction Impeded 1 | . . . 1 . . . . . . . . . . . . Haulers Reinforced 2 | . . . . . . . . . . . 2 . . . . Active Scanning Responses . | . . . . . . . . . . . . . . . . Cargo Convoy Interrupts . | . . . . . . . . . . . . . . . . Stealth | -11 -10 -10 -9 -9 -9 -8 -8 -8 -7 -7 -6 -6 -6 -6 -5 --------- Run | Yrd Mat Min Mat Min Exi Min Mat Sto Fac Gar Fac Low Low Dat Pro Distress Signals 7 | . . . 1 . . . 5 1 . . . . . . . Communications Jammed . | . . . . . . . . . . . . . . . . Distress Signals . | . . . . . . . . . . . . . . . . Times Spotted 288 | . 22 6 26 . . 11 39 41 19 26 52 3 18 . 25 Peak Tracking Total 9 | . 3 2 8 . . 3 9 6 4 6 6 3 4 . 8 Tactical Retreats 10 | . 1 . 2 . . . 4 1 . 1 1 . . . . Traps | -11 -10 -10 -9 -9 -9 -8 -8 -8 -7 -7 -6 -6 -6 -6 -5 ------- Run | Yrd Mat Min Mat Min Exi Min Mat Sto Fac Gar Fac Low Low Dat Pro Traps Triggered 9 | . 1 . . . . . . 6 1 . 1 . . . . Indirectly . | . . . . . . . . . . . . . . . . Trap Hack Attempts . | . . . . . . . . . . . . . . . . Triggered . | . . . . . . . . . . . . . . . . Disarmed . | . . . . . . . . . . . . . . . . Reprogrammed . | . . . . . . . . . . . . . . . . Reused . | . . . . . . . . . . . . . . . . Traps Extracted . | . . . . . . . . . . . . . . . . Installed . | . . . . . . . . . . . . . . . . Triggered 1 | . . . . . . . . . . . . . 1 . . Machines | -11 -10 -10 -9 -9 -9 -8 -8 -8 -7 -7 -6 -6 -6 -6 -5 ---------- Run | Yrd Mat Min Mat Min Exi Min Mat Sto Fac Gar Fac Low Low Dat Pro Machines Disabled 17 | . 1 . . . . . 1 2 . 3 9 . 1 . . Max in Single Turn 5 | . 1 . . . . . 1 1 . 1 5 . 1 . . Garrison Relay 2 | . . . . . . . . . . 2 . . . . . Machines Repaired . | . . . . . . . . . . . . . . . . Machines Dismantled . | . . . . . . . . . . . . . . . . Machines Sabotaged . | . . . . . . . . . . . . . . . . Overloaded Fab Kills . | . . . . . . . . . . . . . . . . Hacking | -11 -10 -10 -9 -9 -9 -8 -8 -8 -7 -7 -6 -6 -6 -6 -5 --------- Run | Yrd Mat Min Mat Min Exi Min Mat Sto Fac Gar Fac Low Low Dat Pro Machines Accessed 50 | . 7 1 6 . 1 . 5 7 7 2 9 . 1 4 . Terminals 34 | . 6 1 5 . . . 4 4 5 2 7 . . . . Fabricators 3 | . . . . . . . . . 1 . 2 . . . . Repair Stations 1 | . . . . . . . . 1 . . . . . . . Recycling Units 5 | . 1 . 1 . . . 1 2 . . . . . . . Scanalyzers . | . . . . . . . . . . . . . . . . Garrison Access 1 | . . . . . . . . . 1 . . . . . . Total Hacks 164 | . 21 3 17 . 23 . 9 20 17 2 22 . 1 29 . Successful 96 | . 9 1 5 . 23 . 4 7 7 2 8 . 1 29 . Failed 68 | . 12 2 12 . . . 5 13 10 . 14 . . . . Catastrophic 16 | . 2 1 2 . . . 1 3 2 . 5 . . . . Database Lockouts . | . . . . . . . . . . . . . . . . Manual 37 | . 11 2 5 . . . 2 10 3 . 3 . 1 . . Terminals 93 | . 19 3 15 . . . 8 15 12 2 19 . . . . Fabricators 5 | . . . . . . . . . 2 . 3 . . . . Repair Stations 1 | . . . . . . . . 1 . . . . . . . Recycling Units 9 | . 2 . 2 . . . 1 4 . . . . . . . Scanalyzers . | . . . . . . . . . . . . . . . . Garrison Access 3 | . . . . . . . . . 3 . . . . . . Terminal Hacks 90 | . 8 1 5 . 23 . 3 6 5 2 7 . 1 29 . Record 35 | . . . . . 23 . 1 . . . . . . 11 . Part Schematic 10 | . . . . . . . . . . . . . . 10 . Robot Schematic 5 | . . . . . . . . . . . . . . 5 . Robot Analysis 1 | . . . . . . . 1 . . . . . . . . Prototype ID Bank 11 | . 1 . . . . . . 2 3 . 2 . . 3 . Open Door 3 | . . . . . . . . 1 . 1 . . 1 . . Branch Access Points 4 | . 1 . 2 . . . . . . . 1 . . . . Terminal Index 2 | . 1 . . . . . . 1 . . . . . . . Unreport Threat 7 | . 1 . 2 . . . . 2 . . 2 . . . . Locate Traps 3 | . 2 . . . . . 1 . . . . . . . . Hauler Manifests 4 | . 2 . 1 . . . . . . . 1 . . . . Registered Components 1 | . . . . . . . . . 1 . . . . . . Registered Prototypes 2 | . . . . . . . . . 1 . 1 . . . . Zone Layout 1 | . . 1 . . . . . . . . . . . . . Garrison Registry 1 | . . . . . . . . . . 1 . . . . . Fabricator Hacks 2 | . . . . . . . . . 1 . 1 . . . . Build 2 | . . . . . . . . . 1 . 1 . . . . Repair Station Hacks . | . . . . . . . . . . . . . . . . Recycling Unit Hacks 3 | . 1 . . . . . 1 1 . . . . . . . Retrieve Components 3 | . 1 . . . . . 1 1 . . . . . . . Scanalyzer . | . . . . . . . . . . . . . . . . Garrison Access Hacks 1 | . . . . . . . . . 1 . . . . . . Unlock Access 1 | . . . . . . . . . 1 . . . . . . Unauthorized Hacks . | . . . . . . . . . . . . . . . . Terminals . | . . . . . . . . . . . . . . . . Fabricators . | . . . . . . . . . . . . . . . . Repair Stations . | . . . . . . . . . . . . . . . . Recycling Units . | . . . . . . . . . . . . . . . . Scanalyzers . | . . . . . . . . . . . . . . . . Garrison Access . | . . . . . . . . . . . . . . . . Data Cores Recovered 1 | . . . . . . . . . 1 . . . . . . Used . | . . . . . . . . . . . . . . . . Hacking Detections 37 | . 7 1 6 . . . 4 6 5 . 8 . . . . Full Trace Events 4 | . . . . . . . 1 . 1 . 2 . . . . Feedback Events 1 | . . . . . . . 1 . . . . . . . . Corruption 1 | . . . . . . . 1 . . . . . . . . Feedback Blocked . | . . . . . . . . . . . . . . . . Robot Schematics Acquired 5 | . . . . . . . . . . . . . . 5 . Robots Built . | . . . . . . . . . . . . . . . . Authchips . | . . . . . . . . . . . . . . . . Time . | . . . . . . . . . . . . . . . . Total Robot Build Rating . | . . . . . . . . . . . . . . . . Part Schematics Acquired 10 | . . . . . . . . . . . . . . 10 . Parts Built 4 | . . . . . . . . . 2 . 2 . . . . Authchips . | . . . . . . . . . . . . . . . . Time 212 | . . . . . . . . . 106 . 106 . . . . Total Part Build Rating 24 | . . . . . . . . . 12 . 12 . . . . Parts Repaired . | . . . . . . . . . . . . . . . . Time . | . . . . . . . . . . . . . . . . Parts Recycled . | . . . . . . . . . . . . . . . . Recycled Matter . | . . . . . . . . . . . . . . . . Retrieved Matter . | . . . . . . . . . . . . . . . . Retrieved Components 15 | . 2 . . . . . 10 3 . . . . . . . Parts Scanalyzed . | . . . . . . . . . . . . . . . . Part Schematics Acquired . | . . . . . . . . . . . . . . . . Parts Damaged . | . . . . . . . . . . . . . . . . Bothacking | -11 -10 -10 -9 -9 -9 -8 -8 -8 -7 -7 -6 -6 -6 -6 -5 ------------ Run | Yrd Mat Min Mat Min Exi Min Mat Sto Fac Gar Fac Low Low Dat Pro Used RIF Installer . | . . . . . . . . . . . . . . . . Robots Hacked . | . . . . . . . . . . . . . . . . Non-combat . | . . . . . . . . . . . . . . . . Combat . | . . . . . . . . . . . . . . . . Robot Hacks Applied . | . . . . . . . . . . . . . . . . Relay Couplers Released 7 | . . . . . . . . . . 7 . . . . . Machine Destruction 7 | . . . . . . . . . . 7 . . . . . Fabnet Peak Effective % . | . . . . . . . . . . . . . . . . Robots Rewired 1 | . . . . . . . . . . . . . . . 1 Allies Hacked . | . . . . . . . . . . . . . . . . Hacks Repelled . | . . . . . . . . . . . . . . . . Allies | -11 -10 -10 -9 -9 -9 -8 -8 -8 -7 -7 -6 -6 -6 -6 -5 -------- Run | Yrd Mat Min Mat Min Exi Min Mat Sto Fac Gar Fac Low Low Dat Pro Total Allies 17 | . . . . 3 . . . 10 . 2 . . . . 2 Largest Group 10 | . . . . 3 3 3 . 10 7 2 . . . . 1 Highest-Rated Group 173 | . . . . 40 40 40 . 173 125 51 . . . . 96 Highest-Rated Ally 96 | . . . . 16 16 16 . 29 29 31 . . . . 96 Total Orders 1 | . . . . . . . . . . . 1 . . . . EXPLORE 1 | . . . . . . . . . . . 1 . . . . Ally Attacks 77 | . . . . . . 12 . 6 39 8 . . . . 12 Total Damage 1159 | . . . . . . 152 . 59 436 182 . . . . 330 Kills 12 | . . . . . . 2 . 1 7 1 . . . . 1 Allies Corrupted . | . . . . . . . . . . . . . . . . Allies Melted 1 | . . . . . . . . . . . . . . . 1 Intel | -11 -10 -10 -9 -9 -9 -8 -8 -8 -7 -7 -6 -6 -6 -6 -5 ------- Run | Yrd Mat Min Mat Min Exi Min Mat Sto Fac Gar Fac Low Low Dat Pro Robot Analysis Total 1 | . . . . . . . 1 . . . . . . . . Derelict Logs Recovered 8 | . . 2 . 2 . . . . . . . . 1 . 3 Drone Launches 2 | . . . . . . . . . . . 2 . . . . Drone Recoveries 1 | . . . . . . . . . . . 1 . . . . Exploration | -11 -10 -10 -9 -9 -9 -8 -8 -8 -7 -7 -6 -6 -6 -6 -5 ------------- Run | Yrd Mat Min Mat Min Exi Min Mat Sto Fac Gar Fac Low Low Dat Pro Turns Passed 17721 | 82 1345 1058 988 671 618 891 1285 1692 1851 1262 2425 496 1934 120 1003 Spaces Moved 8874 | 58 750 593 417 418 384 509 508 779 1026 513 1162 279 1043 76 359 Core 3 | 1 . . . . . . . . . . . . . . 2 Treads 7939 | . . 593 417 418 384 509 508 779 1026 409 1162 279 1043 76 336 Legs 807 | 57 750 . . . . . . . . . . . . . . Wheels 104 | . . . . . . . . . . 104 . . . . . Hover 21 | . . . . . . . . . . . . . . . 21 Flight . | . . . . . . . . . . . . . . . . Fastest Speed 50 | 50 120 160 160 160 160 160 160 155 160 150 166 166 160 160 50 Average Speed 163 | 118 149 160 160 160 160 160 164 160 160 168 166 166 162 160 227 Slowest Speed 290 | 120 190 160 160 160 160 160 240 240 162 245 166 166 240 160 290 Overloaded Moves . | . . . . . . . . . . . . . . . . Propulsion Burnouts . | . . . . . . . . . . . . . . . . Robots Hopped . | . . . . . . . . . . . . . . . . Cave-ins Triggered . | . . . . . . . . . . . . . . . . Exploration Rate (%) 65 | 5 94 98 41 98 86 98 37 93 25 58 32 59 93 68 62 Regions Visited 15 Branch Regions 9 Pre-discovered Areas 4 | . . . . 1 1 . . . . . . 1 . 1 . Known Exits Taken 7 | . 1 . 1 . . 1 1 1 1 . 1 . . . . Unknown Exits Taken 7 | 1 . 1 . 1 1 . . . . . . 1 1 1 . Scrap Searched 20 | . . 3 . 1 . 3 . . . . . 2 8 . 3 Spaces Dug . | . . . . . . . . . . . . . . . . Terrain Destroyed 153 | . . . . . . 32 7 . . 16 68 . 10 . 20 Melee . | . . . . . . . . . . . . . . . . Projectile 31 | . . . . . . . 7 . . 1 2 . 10 . 11 AOE 122 | . . . . . . 32 . . . 15 66 . . . 9 Terrain Rammed . | . . . . . . . . . . . . . . . . Walls Destroyed . | . . . . . . . . . . . . . . . . Machines Disabled . | . . . . . . . . . . . . . . . . Actions | -11 -10 -10 -9 -9 -9 -8 -8 -8 -7 -7 -6 -6 -6 -6 -5 --------- Run | Yrd Mat Min Mat Min Exi Min Mat Sto Fac Gar Fac Low Low Dat Pro Total 10655 | 68 858 652 582 422 388 549 764 1025 1150 734 1452 296 1181 75 459 Wait 424 | . 24 27 11 . 3 17 49 55 20 55 87 6 47 . 23 Move 8859 | 57 749 592 416 417 383 508 507 778 1025 512 1161 278 1042 75 359 Hop . | . . . . . . . . . . . . . . . . Pick Up 118 | 5 10 1 15 1 . . 17 5 20 10 20 2 7 . 5 Fast Attach 97 | 5 2 . 11 . . . 20 17 9 8 11 . 12 . 2 Attach 63 | 1 . 2 4 . . 2 10 2 9 5 7 1 10 . 10 Detach 33 | . . . 7 2 . . 5 . 1 1 7 . 6 . 4 Swap 122 | . 6 2 9 . 1 2 13 23 5 14 40 1 2 . 4 Drop 165 | . 8 2 25 2 1 . 25 35 20 9 25 1 10 . 2 Fire 761 | . 57 26 83 . . 20 118 107 41 118 94 7 45 . 45 Melee 5 | . . . . . . . . 3 . 2 . . . . . Ram . | . . . . . . . . . . . . . . . . Kick 2 | . 2 . . . . . . . . . . . . . . Crush 1 | . . . 1 . . . . . . . . . . . . Escape Stasis . | . . . . . . . . . . . . . . . . Rewire 5 | . . . . . . . . . . . . . . . 5 Trap . | . . . . . . . . . . . . . . . . Miscellaneous . | . . . . . . . . . . . . . . . . Route ------- -11/Scrapyard -10/Materials (discovered 4 exits: *Mat x3 / *Min) -10/Mines (discovered 3 exits: *Mat x2 / [*Sub]) -9/Materials (discovered 3 exits: *Mat / *Min x2) -9/Mines (discovered 4 exits: *Mat x2 / *Exi / [*Zio]) -9/Exiles -8/Mines (discovered 2 exits: *Mat x2) -8/Materials (discovered 4 exits: *Fac x3 / *Sto) -8/Storage -7/Factory -7/Garrison (discovered 3 exits: *Fac x3) -6/Factory (discovered 3 exits: [*Fac] / *Low x2) -6/Lower Caves -6/Lower Caves (discovered 2 exits: [*Fac] / *Dat) -6/Data Miner -5/Proximity Caves History --------- Turn | Location | Event 15 | -11/Scrapyard | Discovered new exit (range 16) 83 | -11/Scrapyard | Entered Materials 92 | -10/Materials | Identified exit to Mines 311 | -10/Materials | Build established: Mutant 381 | -10/Materials | Discovered new exit (range 16) 709 | -10/Materials | Discovered new exit (range 10) 955 | -10/Materials | Discovered new exit (range 7) 1428 | -10/Materials | Entered Mines 1512 | -10/Mines | Discovered new exit (range 15) 1749 | -10/Mines | Learned Materials terminal intel 1903 | -10/Mines | Core integrity fell below 50% 1982 | -10/Mines | Discovered new exit (range 9) 2093 | -10/Mines | Learned 8 Materials zone layouts 2294 | -10/Mines | Discovered new exit (range 8) 2486 | -10/Mines | Entered Materials 2486 | -9/Materials | Evolved 2 slots: Propulsion x1, Utility x1 2487 | -9/Materials | Identified exit to Materials 2488 | -9/Materials | Loaded intel: 12 terminal locations 2595 | -9/Materials | Identified exit to Mines 3099 | -9/Materials | Build established: Scavenger-Mutant 3474 | -9/Materials | Entered Mines 3782 | -9/Mines | Learned location of Storage (-8) 3858 | -9/Mines | Deemed a non-threat by the Exiles lab entrance 3860 | -9/Mines | Discovered new exit (range 5) 3911 | -9/Mines | Discovered exit to Materials (range 10) 3930 | -9/Mines | Assisted by bots powering up and referring to "LRC-V3" 3940 | -9/Mines | Learned 8 Materials zone layouts 3948 | -9/Mines | Discovered exit to Materials (range 6) 3957 | -9/Mines | Received a Rocket Launcher from a helpful Derelict 4036 | -9/Mines | A Derelict revealed a hidden shortcut to a safe place 4145 | -9/Mines | Entered Exiles 4145 | -9/Exiles | Accompanied by 3 allies 4182 | -9/Exiles | Met 8R-AWN 4213 | -9/Exiles | Met EX-HEX 4256 | -9/Exiles | Met EX-BIN 4366 | -9/Exiles | Met EX-DEC 4374 | -9/Exiles | Learned location of Zion (-7) 4446 | -9/Exiles | Visited The Gauntlet 4747 | -9/Exiles | Discovered new exit (range 10) 4763 | -9/Exiles | Entered Mines 4763 | -8/Mines | Accompanied by 3 allies 4771 | -8/Mines | Discovered exit to Materials (range 12) 4968 | -8/Mines | Lost 3 allies 5455 | -8/Mines | Discovered exit to Materials (range 9) 5654 | -8/Mines | Entered Materials 5654 | -8/Materials | Evolved 2 slots: Utility x2 5655 | -8/Materials | Identified exit to Factory 5655 | -8/Materials | Identified exit to Storage 6271 | -8/Materials | Lost 12 parts (2p4n4u2w) 6320 | -8/Materials | Found Powered Armor 6323 | -8/Materials | Found Powered Armor 6326 | -8/Materials | Found Powered Armor 6332 | -8/Materials | Found Powered Armor 6939 | -8/Materials | Entered Storage 7552 | -8/Storage | Discovered exit to Factory (range 5) 7975 | -8/Storage | Core integrity fell below 50% 8071 | -8/Storage | Assisted by bots powering up and referring to "LRC-V3" 8370 | -8/Storage | Build established: Commander-Mutant 8608 | -8/Storage | Lost 3 allies 8631 | -8/Storage | Entered Factory 8631 | -7/Factory | Accompanied by 7 allies 8631 | -7/Factory | Evolved 2 slots: Propulsion x1, Utility x1 8656 | -7/Factory | Identified exit to Garrison 8841 | -7/Factory | Lost 3 allies 9055 | -7/Factory | Fabricated Imp. Coolant Injector? 9118 | -7/Factory | Build established: Scavenger-Mutant 9293 | -7/Factory | Lost 5 parts (1p1n3u) 10482 | -7/Factory | Entered Garrison 10536 | -7/Garrison | Triggered checkpoint 10574 | -7/Garrison | Garrison Relay disabled 10614 | -7/Garrison | Triggered checkpoint 10726 | -7/Garrison | Triggered checkpoint 10823 | -7/Garrison | Triggered checkpoint 10868 | -7/Garrison | Destroyed 10 combat bots 11010 | -7/Garrison | Discovered new exit (range 49) 11010 | -7/Garrison | Discovered new exit (range 26) 11010 | -7/Garrison | Discovered new exit (range 50) 11112 | -7/Garrison | Spotted B-75 Beast 11137 | -7/Garrison | Destroyed B-75 Beast 11165 | -7/Garrison | Lost 3 parts (1n1u1w) 11345 | -7/Garrison | Rescued a captive Derelict 11349 | -7/Garrison | Rescued a captive Derelict 11630 | -7/Garrison | Triggered checkpoint 11694 | -7/Garrison | Garrison Relay disabled 11744 | -7/Garrison | Entered Factory 11744 | -6/Factory | Evolved 2 slots: Power x1, Weapon x1 11894 | -6/Factory | Discovered new exit (range 16) 11905 | -6/Factory | Fabricated Point Defense System? 12098 | -6/Factory | Build established: Tank 12414 | -6/Factory | Discovered new exit (range 24) 12468 | -6/Factory | Identified exit to Lower Caves 12848 | -6/Factory | Garrison activated, responded to threat 13538 | -6/Factory | First assault squad dispatched 13918 | -6/Factory | Destroyed 8 combat bots 14044 | -6/Factory | Garrison activated, responded to threat 14169 | -6/Factory | Entered Lower Caves 14351 | -6/Lower Caves | Met a Warlord Commander 14352 | -6/Lower Caves | Learned location of Warlord (-4) 14353 | -6/Lower Caves | Warlord Commander delivered Encrypted Comm Array 14354 | -6/Lower Caves | Found Unknown Device 14641 | -6/Lower Caves | Discovered new exit (range 7) 14665 | -6/Lower Caves | Entered another Lower Caves area 14725 | -6/Lower Caves | Discovered new exit (range 9) 14953 | -6/Lower Caves | Acquired the password to a Derelict Tinkerer's latest research 14965 | -6/Lower Caves | Found Prototype Special Weapon 14965 | -6/Lower Caves | Identified Molecular Deconstructor 15012 | -6/Lower Caves | Build established: Gunner 15039 | -6/Lower Caves | Caught by Unaware searching for contraband prototypes 15234 | -6/Lower Caves | Learned Factory stockpile data 15500 | -6/Lower Caves | Caught by Unaware searching for contraband prototypes 15528 | -6/Lower Caves | Spotted B-75 Beast 15578 | -6/Lower Caves | Destroyed B-75 Beast 16313 | -6/Lower Caves | Discovered new exit (range 8) 16321 | -6/Lower Caves | Attracted the attention of an 0b10 checkpoint 16556 | -6/Lower Caves | Build established: Derelict-Gunner 16599 | -6/Lower Caves | Entered Data Miner 16599 | -6/Data Miner | Discovered new exit (range 6) 16630 | -6/Data Miner | Met Data Miner 16657 | -6/Data Miner | Learned location of Section 7 (-2) 16657 | -6/Data Miner | Acquired the access code to Warlord's prototype stash 16684 | -6/Data Miner | Received God Mode back door access code from Data Miner 16719 | -6/Data Miner | Entered Proximity Caves 16721 | -5/Proximity Caves | Spotter reported a threat 16722 | -5/Proximity Caves | Spotter reported a threat 16800 | -5/Proximity Caves | Spotted B-75 Beast 16885 | -5/Proximity Caves | Build established: Scavenger-Tank 16901 | -5/Proximity Caves | Destroyed 7 combat bots 16924 | -5/Proximity Caves | Learned Factory emergency access door positions 17012 | -5/Proximity Caves | Identified Encrypted Comm Array 17450 | -5/Proximity Caves | Learned location of 1 exit from Factory 17529 | -5/Proximity Caves | Attracted the attention of an 0b10 outpost 17564 | -5/Proximity Caves | Escorted by Enhanced Grunt 17611 | -5/Proximity Caves | Core integrity fell below 50% 17613 | -5/Proximity Caves | Destroyed 8 combat bots 17625 | -5/Proximity Caves | Lost 8 parts (1p2n2u3w) 17716 | -5/Proximity Caves | Core integrity fell below 20% 17722 | -5/Proximity Caves | Destroyed by H-66 Slayer with Gauss Rifle Last Messages --------------- 17706_ Imp. Arc Projector destroyed. 17708_ Penetrated by Slug. 17708_ Slug penetrates Machine. 17709_ Penetrated by Slug. 17711_ Imp. Focal Shield destroyed. 17711_ Destroyed Imp. Focal Shield. 17712_ Penetrated by Slug. 17712_ Missile Launcher destroyed. 17712_ Penetrated by Slug. 17716_ Dropped Hcp. Storage Unit. 17717_ Attempting to rewire L-41 Fighter. 17718_ L-41 Fighter rewired. 17718_ Penetrated by Slug. 17719_ Slug penetrates Fighter 6a. 17719_ Attempting to rewire B-60 Warrior. 17721_ Penetrated by Slug. 17721_ Attempting to rewire B-60 Warrior. 17722_ Slug penetrates Fighter 6a. 17722_ Adv. Heat Sink destroyed. 17722_ Slug penetrates Fighter 6a. Map ----- +----------------------------------------------------+ | ###?????????????????? ??????????????????????????? | | ##????????????????? ?????????????????????????? | | #????????????????? ??????? ???????????????? | | #???# ???????# ??????? ??????????????? | | ###??# ?????? ??????? ??????????????? | | ##????# ?????? ????### ???????????????? | | #??????# ????## ??## ????????????????? | | #?????## ???## ??## #?????????????????? | | ?????## ???# #??# #??????????????????? | | ????## #??# #??# ???????????????????? | | ????# ### #?## ????????????????????? | | #???# ### #?????????????????????? | | #??# ## ## ##????????????????????? | | ### #?# ### ##???????????????????? | | #?# ###?????????????????? | | #?# ##????????????????? | | ## ## ##### #????????????????? | | ##??????### ##???# ##???????????????? | | #?????????# #????# ##????? #### ?? | | ##?????????# #????## ##??? ?? | | #??????????# ####??## #### ### ? | | #??????????# #?########## ? | | ##?????????# #?# % ? | | ##????????#### #?# ## ; ? | | ##????????### ### #b ### ## ?? | | #???????## # # ## @!lh "# ##?# ##???? | | ######### "!=h " %;### #????? | | #### ### #"=!!= %%%% #????? | | ???## ##?# #"]!+ # % #???? | | ????############# #?#?#" !# ##### #???? | | ????????????????## ##???##### #?????## ##???? | | ?????????????????###?????? #???????####????? | | ?????????????????????????#########???????????????? | | ?????????????????????????????????????????????????? | | ?????????????????????????????????????????????????? | | ?????????????????????????????????????????????????? | | ?????????????????????????????????????????????????? | | ?????????????????????????????????????????????????? | | ?????????????????????????????????????????????????? | | ?????????????????????????????????????????????????? | | ?????????????????????????????????????????????????? | | ?????????????????????????????????????????????????? | | ?????????????????????????????????????????????????? | | ?????????????????????????????????????????????????? | | ?????????????????????????????????????????????????? | | ?????????????????????????????????????????????????? | | ?????????????????????????????????????????????????? | | | | | | | +----------------------------------------------------+ Best States ------------- Heat Dissipation 59 Energy Generation 34 Energy Capacity 535 Matter Stores 300 Matter Capacity 300 Sight Range 16 Robot Scan Range 15 Terrain Scan Density 10 Armor Coverage 1200 Resistance: KI 30 Resistance: TH 20 Resistance: EM 25 Evasion (%) 55 Targeting Accuracy 6 Core Analysis 6 Armor Integrity Analysis 30 Recoil Reduction 4 Offensive Hacking 11 Item Schematics ----------------- Combat Drone Bay | -6/Data Miner | Free Lgt. Regenerative Plating | -6/Data Miner | Free Cld. Gravmag System | -6/Data Miner | Free Exp. Heat Sink | -6/Data Miner | Free Enh. Coil Gun | -6/Data Miner | Free Imp. Cloaking Device | -6/Data Miner | Free Hvy. Disruptor Cannon | -6/Data Miner | Free Centrium Wheel | -6/Data Miner | Free HERF Cannon | -6/Data Miner | Free Adv. Recalibrator | -6/Data Miner | Free Robot Schematics ------------------ B-60 Warrior | -6/Data Miner | Free E-15 Imp | -6/Data Miner | Free D-63 Destroyer | -6/Data Miner | Free A-15 Conveyor | -6/Data Miner | Free X-62 Marksman | -6/Data Miner | Free Fabricated ------------ Imp. Coolant Injector | x2 | -7/Factory | Preloaded Point Defense System | x2 | -6/Factory | Preloaded Alien Tech Used ----------------- None Achievements -------------- None Challenges ------------ None Game ------ Seed AssembledNodeDetonator Manual? 0 Play Time 02:42:12 Cumulative 148.4 hours Start 2024.07.26 @ 19:00:00 End 2024.07.26 @ 22:07:15 Sessions 1 Manual Loads 0 Difficulty Rogue Special Mode None Game No. 49 Rogue 49 Adventurer 0 Explorer 0 Win Type - Total 1 Types 1/0/0/0/0/0/0/0/0 Lore% 55 Gallery% 62 Achievement% 46 Wizard Run 0 Options --------- Layout 0 ASCII 0 Keyboard 1 Movement Numpad Keybinds 0 Fullscreen 1 Font 18/X11Bold Map View 76x50 Zoom Use 0% Tactical HUD 1 Map Filters NONE Filters NONE Steam 1 RUN: edee3673-c5a8-4d35-95e4-0428f42e672e